[Event "*** Titled Tuesday 3|2 Blitz"]
[Site "Chess.com"]
[Date "2016.05.03"]
[Round "6"]
[White "Zurability"]
[Black "vinceyoung15"]
[Result "1-0"]
[WhiteElo "2419"]
[BlackElo "2209"]
[TimeControl "180+2"]
[EndTime "18:15:17 PDT"]
[Termination "Zurability won by resignation"]

1. e4 {[%clk 0:03:01.9]} 1... c5 {[%clk 0:02:51]} 2. Nc3 {[%clk 0:02:55.1]} 2...
Nc6 {[%clk 0:02:52.1]} 3. Nge2 {[%clk 0:02:56.2]} 3... e6 {[%clk 0:02:52.8]} 4.
d4 {[%clk 0:02:57.3]} 4... cxd4 {[%clk 0:02:54]} 5. Nxd4 {[%clk 0:02:59.2]} 5...
Qc7 {[%clk 0:02:55.6]} 6. Be3 {[%clk 0:03:00.8]} 6... a6 {[%clk 0:02:56.9]} 7.
f4 {[%clk 0:03:02.3]} 7... Bb4 {[%clk 0:02:54.9]} 8. Nxc6 {[%clk 0:03:02.3]}
8... bxc6 {[%clk 0:02:42.7]} 9. Qd4 {[%clk 0:03:03.3]} 9... Bxc3+ {[%clk
0:02:37.5]} 10. Qxc3 {[%clk 0:03:03.9]} 10... Nf6 {[%clk 0:02:39]} 11. e5 {[%clk
0:03:01.5]} 11... Nd5 {[%clk 0:02:39.5]} 12. Qc5 {[%clk 0:02:57.5]} 12... Nxe3
{[%clk 0:02:40.1]} 13. Qxe3 {[%clk 0:02:58]} 13... d5 {[%clk 0:02:37.4]} 14.
exd6 {[%clk 0:02:56.6]} 14... Qxd6 {[%clk 0:02:37.8]} 15. Qd2 {[%clk 0:02:54.6]}
15... Qxd2+ {[%clk 0:02:21.9]} 16. Kxd2 {[%clk 0:02:56.5]} 16... O-O {[%clk
0:02:23.3]} 17. g3 {[%clk 0:02:52]} 17... Rb8 {[%clk 0:02:22.4]} 18. Kc3 {[%clk
0:02:51.3]} 18... c5 {[%clk 0:02:20.5]} 19. Bc4 {[%clk 0:02:50.4]} 19... Rd8
{[%clk 0:02:14.8]} 20. Rhd1 {[%clk 0:02:50.8]} 20... Bb7 {[%clk 0:02:15.9]} 21.
Rxd8+ {[%clk 0:02:28.3]} 21... Rxd8 {[%clk 0:02:15.5]} 22. Re1 {[%clk
0:02:30.2]} 22... Kf8 {[%clk 0:02:14.1]} 23. Re5 {[%clk 0:02:29.2]} 23... Rc8
{[%clk 0:02:06.9]} 24. f5 {[%clk 0:02:15.3]} 24... exf5 {[%clk 0:02:04.3]} 25.
Rxf5 {[%clk 0:02:17.2]} 25... f6 {[%clk 0:02:05.2]} 26. Bd5 {[%clk 0:02:18.6]}
26... Bxd5 {[%clk 0:01:58.7]} 27. Rxd5 {[%clk 0:02:19.3]} 27... Ke7 {[%clk
0:01:54]} 28. Kc4 {[%clk 0:02:20.3]} 28... Rb8 {[%clk 0:01:55]} 29. b3 {[%clk
0:02:20.6]} 29... Rb6 {[%clk 0:01:40.1]} 30. Rxc5 {[%clk 0:02:16.2]} 30... Re6
{[%clk 0:01:39.2]} 31. Rc7+ {[%clk 0:02:15.8]} 31... Kf8 {[%clk 0:01:38.5]} 32.
a4 {[%clk 0:02:09]} 32... h5 {[%clk 0:01:38.1]} 33. b4 {[%clk 0:02:09]} 33...
Re4+ {[%clk 0:01:35.5]} 34. Kb3 {[%clk 0:02:07.5]} 34... g5 {[%clk 0:01:33.3]}
35. b5 {[%clk 0:02:07.9]} 35... axb5 {[%clk 0:01:32.1]} 36. axb5 {[%clk
0:02:09.8]} 36... Re1 {[%clk 0:01:27.1]} 37. c4 {[%clk 0:02:06.7]} 37... f5
{[%clk 0:01:26.5]} 38. c5 {[%clk 0:02:07.6]} 38... f4 {[%clk 0:01:27.6]} 39.
gxf4 {[%clk 0:02:07.9]} 39... gxf4 {[%clk 0:01:28.1]} 40. Rh7 {[%clk 0:01:51.8]}
40... Re5 {[%clk 0:01:17.7]} 41. Kb4 {[%clk 0:01:52.1]} 41... f3 {[%clk
0:01:08.9]} 42. b6 {[%clk 0:01:51.6]} 42... f2 {[%clk 0:00:59.4]} 43. b7 {[%clk
0:01:52.4]} 43... Re8 {[%clk 0:00:57.8]} 44. Rh8+ {[%clk 0:01:51.5]} 44... Kf7
{[%clk 0:00:45.3]} 45. Rxe8 {[%clk 0:01:53.4]} 45... f1=Q {[%clk 0:00:44.6]} 46.
b8=Q {[%clk 0:01:53.5]} 46... Qb1+ {[%clk 0:00:39.5]} 47. Ka5 {[%clk 0:01:54.3]}
47... Qa2+ {[%clk 0:00:39]} 48. Kb6 {[%clk 0:01:55.4]} 48... Qb2+ {[%clk
0:00:39.7]} 49. Kc7 {[%clk 0:01:47.1]} 49... Qxh2+ {[%clk 0:00:40.5]} 50. Kc6
{[%clk 0:01:44]} 50... Qg2+ {[%clk 0:00:36.7]} 51. Kd6 {[%clk 0:01:45.2]} 51...
Qg3+ {[%clk 0:00:34.5]} 52. Re5 {[%clk 0:01:44.6]} 52... Qd3+ {[%clk 0:00:31.4]}
53. Kc7 {[%clk 0:01:45.6]} 53... Kf6 {[%clk 0:00:23.9]} 54. Qh8+ {[%clk
0:01:46.5]} 54... Kg6 {[%clk 0:00:22.8]} 55. Qxh5+ {[%clk 0:01:47.3]} 1-0

[Event "*** Titled Tuesday 3|2 Blitz"]
[Site "Chess.com"]
[Date "2016.05.03"]
[Round "6"]
[White "chess960now"]
[Black "dsanchez1973"]
[Result "1-0"]
[WhiteElo "2020"]
[BlackElo "2005"]
[TimeControl "180+2"]
[EndTime "18:15:18 PDT"]
[Termination "chess960now won by resignation"]

1. d4 {[%clk 0:03:01.9]} 1... d5 {[%clk 0:03:00.5]} 2. c4 {[%clk 0:03:01.2]}
2... c6 {[%clk 0:03:01.4]} 3. Nf3 {[%clk 0:03:00.1]} 3... e6 {[%clk 0:03:01.5]}
4. e3 {[%clk 0:02:58.8]} 4... Nf6 {[%clk 0:03:01.7]} 5. b3 {[%clk 0:02:59.5]}
5... Nbd7 {[%clk 0:03:01.6]} 6. Bb2 {[%clk 0:02:59.5]} 6... a6 {[%clk
0:03:02.6]} 7. Nbd2 {[%clk 0:02:58.7]} 7... Bd6 {[%clk 0:02:53.9]} 8. Bd3 {[%clk
0:02:58.7]} 8... b5 {[%clk 0:02:54.1]} 9. O-O {[%clk 0:02:43.3]} 9... c5 {[%clk
0:02:54.9]} 10. e4 {[%clk 0:02:42.1]} 10... bxc4 {[%clk 0:02:51.2]} 11. bxc4
{[%clk 0:02:39]} 11... dxe4 {[%clk 0:02:51.7]} 12. Nxe4 {[%clk 0:02:38]} 12...
Be7 {[%clk 0:02:45.3]} 13. dxc5 {[%clk 0:02:17.6]} 13... Nxe4 {[%clk 0:02:20.2]}
14. Bxe4 {[%clk 0:02:17.3]} 14... Rb8 {[%clk 0:02:21.3]} 15. Bxg7 {[%clk
0:02:15.3]} 15... Rg8 {[%clk 0:02:20.1]} 16. Bd4 {[%clk 0:02:02.4]} 16... f5
{[%clk 0:02:20.6]} 17. Bc2 {[%clk 0:01:50.6]} 17... Bb7 {[%clk 0:02:16.1]} 18.
Ba4 {[%clk 0:01:44.7]} 18... Qc7 {[%clk 0:02:02.6]} 19. Kh1 {[%clk 0:01:12.9]}
19... Bc6 {[%clk 0:02:01.4]} 20. Bxc6 {[%clk 0:01:06.9]} 20... Qxc6 {[%clk
0:02:02.4]} 21. Rb1 {[%clk 0:00:59]} 21... Rc8 {[%clk 0:01:58.5]} 22. Rg1 {[%clk
0:00:54.1]} 22... Bxc5 {[%clk 0:01:56.7]} 23. Bxc5 {[%clk 0:00:49.5]} 23... Qxc5
{[%clk 0:01:56.5]} 24. Rb7 {[%clk 0:00:45.6]} 24... Nf6 {[%clk 0:01:50.9]} 25.
Re1 {[%clk 0:00:35.8]} 25... Qc6 {[%clk 0:01:30.2]} 26. Ra7 {[%clk 0:00:24.2]}
26... Ne4 {[%clk 0:01:29.7]} 27. Qe2 {[%clk 0:00:16.8]} 27... Qxc4 {[%clk
0:01:18.3]} 28. Qxc4 {[%clk 0:00:12.8]} 28... Rxc4 {[%clk 0:01:19.1]} 29. Rxa6
{[%clk 0:00:13.3]} 29... Nxf2+ {[%clk 0:01:14.7]} 30. Kg1 {[%clk 0:00:13.9]}
30... Nh3+ {[%clk 0:00:46.8]} 31. Kf1 {[%clk 0:00:14.9]} 31... Nf4 {[%clk
0:00:47.8]} 32. Ra8+ {[%clk 0:00:14.6]} 32... Kf7 {[%clk 0:00:48.4]} 33. Ne5+
{[%clk 0:00:15]} 33... Kf6 {[%clk 0:00:43.9]} 34. Rxg8 {[%clk 0:00:15.2]} 34...
Rc2 {[%clk 0:00:43]} 35. Nd7+ {[%clk 0:00:14.6]} 35... Kf7 {[%clk 0:00:42.5]}
36. Ra8 {[%clk 0:00:13.8]} 36... Nd3 {[%clk 0:00:43]} 37. Ne5+ {[%clk
0:00:12.1]} 37... Nxe5 {[%clk 0:00:43.6]} 38. Rxe5 {[%clk 0:00:14]} 1-0

[Event "*** Titled Tuesday 3|2 Blitz"]
[Site "Chess.com"]
[Date "2016.05.03"]
[Round "6"]
[White "GM_Huschenbeth"]
[Black "DanielNaroditsky"]
[Result "1-0"]
[WhiteElo "2499"]
[BlackElo "2621"]
[TimeControl "180+2"]
[EndTime "18:15:57 PDT"]
[Termination "GM_Huschenbeth won by checkmate"]

1. e4 {[%clk 0:03:01.9]} 1... c5 {[%clk 0:03:00.7]} 2. Nf3 {[%clk 0:03:02.9]}
2... a6 {[%clk 0:03:02.2]} 3. c3 {[%clk 0:03:03.7]} 3... e6 {[%clk 0:03:02.8]}
4. d4 {[%clk 0:03:04.8]} 4... d5 {[%clk 0:03:04.5]} 5. exd5 {[%clk 0:03:06]}
5... exd5 {[%clk 0:03:05.9]} 6. Bd3 {[%clk 0:03:04.4]} 6... Nc6 {[%clk 0:03:07]}
7. O-O {[%clk 0:03:04.9]} 7... cxd4 {[%clk 0:03:08]} 8. Nxd4 {[%clk 0:02:59.6]}
8... Nxd4 {[%clk 0:03:09]} 9. cxd4 {[%clk 0:03:01.5]} 9... Nf6 {[%clk
0:03:10.4]} 10. Nc3 {[%clk 0:03:01.1]} 10... Be7 {[%clk 0:03:10]} 11. Qf3 {[%clk
0:03:00.8]} 11... h6 {[%clk 0:03:09]} 12. Bf4 {[%clk 0:02:59.4]} 12... O-O
{[%clk 0:03:09.5]} 13. Rfe1 {[%clk 0:03:00.1]} 13... Be6 {[%clk 0:03:08.4]} 14.
Be5 {[%clk 0:02:52]} 14... Rc8 {[%clk 0:03:09.4]} 15. h3 {[%clk 0:02:49]} 15...
Qd7 {[%clk 0:03:10]} 16. Qg3 {[%clk 0:02:48.8]} 16... Kh8 {[%clk 0:03:10.3]} 17.
Rac1 {[%clk 0:02:43.2]} 17... b5 {[%clk 0:03:10.3]} 18. Bb1 {[%clk 0:02:43.1]}
18... b4 {[%clk 0:02:58.5]} 19. Qd3 {[%clk 0:02:37.5]} 19... g6 {[%clk
0:02:27.3]} 20. Ne2 {[%clk 0:02:36.1]} 20... Kg8 {[%clk 0:02:13.2]} 21. Qe3
{[%clk 0:02:22.2]} 21... Kh7 {[%clk 0:01:54.2]} 22. Bf4 {[%clk 0:01:53.2]} 22...
h5 {[%clk 0:01:28.1]} 23. Bg5 {[%clk 0:01:45.5]} 23... Rxc1 {[%clk 0:01:08.2]}
24. Rxc1 {[%clk 0:01:47.4]} 24... Rc8 {[%clk 0:01:09.4]} 25. Re1 {[%clk
0:01:47.8]} 25... Ne4 {[%clk 0:00:51.3]} 26. Bxe7 {[%clk 0:01:39.2]} 26... Qxe7
{[%clk 0:00:53]} 27. Bxe4 {[%clk 0:01:31.8]} 27... dxe4 {[%clk 0:00:52.9]} 28.
Qxe4 {[%clk 0:01:33.7]} 28... Qd7 {[%clk 0:00:48.4]} 29. b3 {[%clk 0:01:25.2]}
29... Bf5 {[%clk 0:00:45.2]} 30. Qe3 {[%clk 0:01:16.1]} 30... Re8 {[%clk
0:00:46.1]} 31. Qd2 {[%clk 0:01:12.7]} 31... a5 {[%clk 0:00:39.3]} 32. Rd1
{[%clk 0:01:01.4]} 32... Qd5 {[%clk 0:00:26.2]} 33. Ng3 {[%clk 0:00:56.9]} 33...
Bd7 {[%clk 0:00:26.4]} 34. Ne2 {[%clk 0:00:49.2]} 34... g5 {[%clk 0:00:22.5]}
35. h4 {[%clk 0:00:41.9]} 35... f6 {[%clk 0:00:18.3]} 36. hxg5 {[%clk
0:00:40.8]} 36... fxg5 {[%clk 0:00:19.5]} 37. Rc1 {[%clk 0:00:42.4]} 37... Bc6
{[%clk 0:00:19.9]} 38. f3 {[%clk 0:00:44]} 38... Re6 {[%clk 0:00:20]} 39. Rc5
{[%clk 0:00:43.4]} 39... Qd7 {[%clk 0:00:15.6]} 40. Qxg5 {[%clk 0:00:41.3]}
40... Rxe2 {[%clk 0:00:16.1]} 41. Qxh5+ {[%clk 0:00:42.5]} 41... Kg8 {[%clk
0:00:11.9]} 42. Rg5+ {[%clk 0:00:44.4]} 42... Kf8 {[%clk 0:00:12.9]} 43. Qh6+
{[%clk 0:00:31.1]} 43... Ke8 {[%clk 0:00:10.6]} 44. Rg8+ {[%clk 0:00:29.4]}
44... Kf7 {[%clk 0:00:11.2]} 45. Rg7+ {[%clk 0:00:29.4]} 45... Ke8 {[%clk
0:00:12.2]} 46. Qh8# {[%clk 0:00:31.3]} 1-0

[Event "*** Titled Tuesday 3|2 Blitz"]
[Site "Chess.com"]
[Date "2016.05.03"]
[Round "6"]
[White "chesstatour"]
[Black "jeaston1"]
[Result "1-0"]
[WhiteElo "2029"]
[BlackElo "2007"]
[TimeControl "180+2"]
[EndTime "18:16:04 PDT"]
[Termination "chesstatour won by resignation"]

1. c4 {[%clk 0:03:01.9]} 1... e5 {[%clk 0:03:00.1]} 2. Nc3 {[%clk 0:03:02.7]}
2... Nf6 {[%clk 0:03:00.6]} 3. Nf3 {[%clk 0:03:04.2]} 3... Bc5 {[%clk
0:03:00.9]} 4. Nxe5 {[%clk 0:03:03.4]} 4... O-O {[%clk 0:03:01.3]} 5. d4 {[%clk
0:03:03.4]} 5... Bb6 {[%clk 0:03:01.1]} 6. Bg5 {[%clk 0:02:59.2]} 6... d6 {[%clk
0:03:01.8]} 7. Nf3 {[%clk 0:02:53.6]} 7... h6 {[%clk 0:03:02.8]} 8. Bh4 {[%clk
0:02:52.7]} 8... Bg4 {[%clk 0:03:02.2]} 9. e3 {[%clk 0:02:50]} 9... Re8 {[%clk
0:02:57.8]} 10. Be2 {[%clk 0:02:46.8]} 10... Nc6 {[%clk 0:02:58.7]} 11. O-O
{[%clk 0:02:47]} 11... Bxf3 {[%clk 0:02:56.5]} 12. Bxf3 {[%clk 0:02:47.5]} 12...
g5 {[%clk 0:02:57.8]} 13. Bg3 {[%clk 0:02:47.6]} 13... Qd7 {[%clk 0:02:58.9]}
14. Rc1 {[%clk 0:02:24.5]} 14... Rab8 {[%clk 0:02:55.1]} 15. a3 {[%clk 0:02:18]}
15... Ne7 {[%clk 0:02:53.8]} 16. b4 {[%clk 0:01:54.3]} 16... a5 {[%clk 0:02:52]}
17. c5 {[%clk 0:01:53.7]} 17... Ba7 {[%clk 0:02:49.9]} 18. cxd6 {[%clk
0:01:38.3]} 18... cxd6 {[%clk 0:02:50.5]} 19. Qd3 {[%clk 0:01:30.8]} 19... axb4
{[%clk 0:02:47.8]} 20. axb4 {[%clk 0:01:32.7]} 20... Rbc8 {[%clk 0:02:46.2]} 21.
Nb5 {[%clk 0:01:26.4]} 21... Bb8 {[%clk 0:02:39.7]} 22. e4 {[%clk 0:01:19.3]}
22... Nc6 {[%clk 0:02:38.7]} 23. d5 {[%clk 0:01:00.2]} 23... Nxb4 {[%clk
0:02:36.8]} 24. Qd4 {[%clk 0:00:49.7]} 24... Qxb5 {[%clk 0:02:07.5]} 25. Rxc8
{[%clk 0:00:43.1]} 25... Rxc8 {[%clk 0:02:02.7]} 26. Qxf6 {[%clk 0:00:44.2]}
26... Bc7 {[%clk 0:01:53.5]} 27. Qxh6 {[%clk 0:00:39.3]} 27... Bd8 {[%clk
0:01:54.6]} 28. h4 {[%clk 0:00:32.5]} 28... Qe8 {[%clk 0:01:47.5]} 29. Bxd6
{[%clk 0:00:23.1]} 29... Nd3 {[%clk 0:01:33.8]} 30. hxg5 {[%clk 0:00:20.5]}
30... Ne5 {[%clk 0:01:32.9]} 31. Bh5 {[%clk 0:00:18.8]} 31... Ng6 {[%clk
0:01:04.7]} 32. Bg4 {[%clk 0:00:12.5]} 32... Rc4 {[%clk 0:00:59.5]} 33. Bf5
{[%clk 0:00:13.6]} 33... Rxe4 {[%clk 0:00:54.3]} 34. Bxe4 {[%clk 0:00:09]} 34...
Qxe4 {[%clk 0:00:54.6]} 35. Bg3 {[%clk 0:00:08.3]} 35... Qxd5 {[%clk 0:00:54.8]}
36. Qh5 {[%clk 0:00:07.9]} 36... Bxg5 {[%clk 0:00:52.7]} 37. Rd1 {[%clk
0:00:08.4]} 37... Qb3 {[%clk 0:00:47]} 38. Re1 {[%clk 0:00:07]} 38... Qd5 {[%clk
0:00:32.3]} 39. Be5 {[%clk 0:00:06.2]} 39... Nxe5 {[%clk 0:00:32]} 40. Qxg5+
{[%clk 0:00:06.7]} 40... Kf8 {[%clk 0:00:24.9]} 41. Qxe5 {[%clk 0:00:07.5]}
41... Qc6 {[%clk 0:00:23.8]} 42. Qe4 {[%clk 0:00:07]} 42... Qc7 {[%clk
0:00:24.3]} 43. Rb1 {[%clk 0:00:07.6]} 43... b6 {[%clk 0:00:24.9]} 44. Qb4+
{[%clk 0:00:08.9]} 44... Kg8 {[%clk 0:00:24.7]} 45. Qxb6 {[%clk 0:00:10.5]}
45... Qe5 {[%clk 0:00:26.1]} 46. Qb8+ {[%clk 0:00:11.6]} 46... Kg7 {[%clk
0:00:27.4]} 47. Qxe5+ {[%clk 0:00:11.2]} 47... Kg6 {[%clk 0:00:28.8]} 1-0

[Event "*** Titled Tuesday 3|2 Blitz"]
[Site "Chess.com"]
[Date "2016.05.03"]
[Round "6"]
[White "ZEN-22"]
[Black "dretch"]
[Result "1-0"]
[WhiteElo "2413"]
[BlackElo "2563"]
[TimeControl "180+2"]
[EndTime "18:16:18 PDT"]
[Termination "ZEN-22 won on time"]

1. e4 {[%clk 0:03:01.9]} 1... e6 {[%clk 0:03:01]} 2. d4 {[%clk 0:02:58.9]} 2...
d5 {[%clk 0:03:02.1]} 3. exd5 {[%clk 0:03:00.8]} 3... exd5 {[%clk 0:03:03]} 4.
c4 {[%clk 0:03:02.7]} 4... Bb4+ {[%clk 0:03:03.7]} 5. Nc3 {[%clk 0:03:04.1]}
5... Ne7 {[%clk 0:03:05.2]} 6. Nf3 {[%clk 0:03:02.2]} 6... Nbc6 {[%clk
0:03:06.3]} 7. h3 {[%clk 0:03:02.7]} 7... O-O {[%clk 0:03:06.7]} 8. a3 {[%clk
0:03:03.1]} 8... Bxc3+ {[%clk 0:03:06.6]} 9. bxc3 {[%clk 0:03:05]} 9... Re8
{[%clk 0:03:07.8]} 10. Be2 {[%clk 0:03:06.1]} 10... dxc4 {[%clk 0:03:08.8]} 11.
O-O {[%clk 0:03:03.5]} 11... Nd5 {[%clk 0:03:04.2]} 12. Bxc4 {[%clk 0:02:57.5]}
12... Nxc3 {[%clk 0:03:01.4]} 13. Qb3 {[%clk 0:02:58]} 13... Ne2+ {[%clk
0:03:01.8]} 14. Bxe2 {[%clk 0:02:53.3]} 14... Rxe2 {[%clk 0:03:02.1]} 15. Be3
{[%clk 0:02:54.6]} 15... Be6 {[%clk 0:02:24.5]} 16. Qd3 {[%clk 0:02:35.2]} 16...
Rb2 {[%clk 0:02:22]} 17. Ng5 {[%clk 0:02:35.1]} 17... g6 {[%clk 0:02:16.6]} 18.
Nxe6 {[%clk 0:02:35]} 18... fxe6 {[%clk 0:02:17.3]} 19. Rfc1 {[%clk 0:02:36.4]}
19... Qd5 {[%clk 0:02:08.4]} 20. Rc5 {[%clk 0:02:34.5]} 20... Qd7 {[%clk
0:01:55]} 21. d5 {[%clk 0:02:25.7]} 21... exd5 {[%clk 0:01:54.6]} 22. Rxd5
{[%clk 0:02:26.1]} 22... Qe6 {[%clk 0:01:55.7]} 23. Rd1 {[%clk 0:02:20.1]} 23...
Re8 {[%clk 0:01:47.2]} 24. Qc3 {[%clk 0:02:18.6]} 24... Rb1 {[%clk 0:01:45.5]}
25. Rxb1 {[%clk 0:02:11.2]} 25... Qxd5 {[%clk 0:01:45.2]} 26. Rxb7 {[%clk
0:02:02.8]} 26... Qd1+ {[%clk 0:01:25.6]} 27. Kh2 {[%clk 0:02:03]} 27... Qd6+
{[%clk 0:01:27.2]} 28. g3 {[%clk 0:02:00.7]} 28... Rf8 {[%clk 0:00:54]} 29. Bf4
{[%clk 0:01:39.5]} 29... Qd5 {[%clk 0:00:49]} 30. Rxc7 {[%clk 0:01:37.9]} 30...
Nd4 {[%clk 0:00:50.2]} 31. Qc4 {[%clk 0:01:22.1]} 31... Nf3+ {[%clk 0:00:48.9]}
32. Kh1 {[%clk 0:01:23.2]} 32... Qxc4 {[%clk 0:00:47.9]} 33. Rxc4 {[%clk
0:01:24.2]} 33... g5 {[%clk 0:00:29.3]} 34. Be3 {[%clk 0:01:24.3]} 34... h5
{[%clk 0:00:28.4]} 35. Bxa7 {[%clk 0:01:23]} 35... Kh7 {[%clk 0:00:27.3]} 36.
Be3 {[%clk 0:01:18.4]} 36... Kg6 {[%clk 0:00:27.2]} 37. Kg2 {[%clk 0:01:19.1]}
37... Ne1+ {[%clk 0:00:21.4]} 38. Kf1 {[%clk 0:01:19.6]} 38... Nf3 {[%clk
0:00:22.3]} 39. Rc6+ {[%clk 0:01:19.4]} 39... Kf5 {[%clk 0:00:21.4]} 40. Rc5+
{[%clk 0:01:20.2]} 40... Ke4 {[%clk 0:00:11.8]} 41. Bxg5 {[%clk 0:01:17.5]}
41... Rb8 {[%clk 0:00:12.4]} 42. Rc4+ {[%clk 0:01:13.4]} 42... Kd3 {[%clk
0:00:09.3]} 43. Rb4 {[%clk 0:01:12.7]} 43... Rxb4 {[%clk 0:00:05.1]} 44. axb4
{[%clk 0:01:13.6]} 44... Nxg5 {[%clk 0:00:06.3]} 45. b5 {[%clk 0:01:14.8]} 45...
Ne6 {[%clk 0:00:05.3]} 46. b6 {[%clk 0:01:16.1]} 46... Nd8 {[%clk 0:00:06.6]}
47. Kg2 {[%clk 0:01:16.3]} 47... Ke4 {[%clk 0:00:07.4]} 48. g4 {[%clk
0:01:15.7]} 48... h4 {[%clk 0:00:07.8]} 49. g5 {[%clk 0:01:15.2]} 49... Kf5
{[%clk 0:00:08.6]} 50. f4 {[%clk 0:01:16.8]} 50... Nb7 {[%clk 0:00:04]} 51. Kf3
{[%clk 0:01:18.3]} 51... Nd6 {[%clk 0:00:04.5]} 52. Kf2 {[%clk 0:01:18.3]} 52...
Ne4+ {[%clk 0:00:02.9]} 53. Ke3 {[%clk 0:01:19.3]} 53... Nd6 {[%clk 0:00:03.7]}
54. Kd4 {[%clk 0:01:20.1]} 54... Nb7 {[%clk 0:00:04.1]} 55. Kd5 {[%clk
0:01:21.1]} 55... Na5 {[%clk 0:00:04.5]} 56. Kc5 {[%clk 0:01:21]} 56... Kxf4
{[%clk 0:00:05.6]} 57. g6 {[%clk 0:01:21.4]} 57... Nb7+ {[%clk 0:00:06.4]} 58.
Kd5 {[%clk 0:01:22.2]} 58... Kg3 {[%clk 0:00:06.9]} 59. g7 {[%clk 0:01:23.5]}
1-0

[Event "*** Titled Tuesday 3|2 Blitz"]
[Site "Chess.com"]
[Date "2016.05.03"]
[Round "6"]
[White "pKiLz5Rn9b"]
[Black "NaziPaiki"]
[Result "0-1"]
[WhiteElo "2417"]
[BlackElo "2665"]
[TimeControl "180+2"]
[EndTime "18:16:21 PDT"]
[Termination "NaziPaiki won by resignation"]

1. e4 {[%clk 0:02:57.2]} 1... c6 {[%clk 0:03:00.7]} 2. d4 {[%clk 0:02:54.2]}
2... d5 {[%clk 0:03:00.7]} 3. Nc3 {[%clk 0:02:55.4]} 3... dxe4 {[%clk
0:03:01.3]} 4. Nxe4 {[%clk 0:02:57.3]} 4... Bf5 {[%clk 0:03:01.7]} 5. Ng3 {[%clk
0:02:57]} 5... Bg6 {[%clk 0:03:01.7]} 6. Nf3 {[%clk 0:02:56.6]} 6... Nd7 {[%clk
0:03:01.1]} 7. h4 {[%clk 0:02:55.9]} 7... h6 {[%clk 0:03:01.4]} 8. h5 {[%clk
0:02:57.3]} 8... Bh7 {[%clk 0:03:02]} 9. Bd3 {[%clk 0:02:58.9]} 9... Bxd3 {[%clk
0:03:01.8]} 10. Qxd3 {[%clk 0:03:00.8]} 10... e6 {[%clk 0:03:03.5]} 11. Bd2
{[%clk 0:02:57.1]} 11... Ngf6 {[%clk 0:03:00.1]} 12. O-O-O {[%clk 0:02:57.1]}
12... Be7 {[%clk 0:02:59]} 13. Kb1 {[%clk 0:02:57.7]} 13... O-O {[%clk
0:02:57.9]} 14. Ne4 {[%clk 0:02:57.6]} 14... c5 {[%clk 0:02:53.5]} 15. Bc1
{[%clk 0:02:27]} 15... Qc7 {[%clk 0:02:50]} 16. Nxf6+ {[%clk 0:02:23.5]} 16...
Nxf6 {[%clk 0:02:50.6]} 17. dxc5 {[%clk 0:02:17.9]} 17... Rad8 {[%clk
0:02:47.1]} 18. Qe2 {[%clk 0:02:12.3]} 18... Bxc5 {[%clk 0:02:48.7]} 19. Ne5
{[%clk 0:02:09]} 19... Bd6 {[%clk 0:02:44.5]} 20. Nd3 {[%clk 0:02:06.1]} 20...
e5 {[%clk 0:02:42.5]} 21. f3 {[%clk 0:02:03.8]} 21... Rfe8 {[%clk 0:02:43.4]}
22. Nf2 {[%clk 0:02:04]} 22... Bf8 {[%clk 0:02:36.9]} 23. Ne4 {[%clk 0:01:58.2]}
23... Qc6 {[%clk 0:02:32.9]} 24. Nxf6+ {[%clk 0:01:57.1]} 24... Qxf6 {[%clk
0:02:33.4]} 25. Qe4 {[%clk 0:01:58.4]} 25... b6 {[%clk 0:02:29.3]} 26. Be3
{[%clk 0:01:54.5]} 26... Qe6 {[%clk 0:02:23.8]} 27. g4 {[%clk 0:01:55.4]} 27...
Bc5 {[%clk 0:02:17.9]} 28. Bxc5 {[%clk 0:01:55.2]} 28... bxc5 {[%clk 0:02:19.2]}
29. Rhe1 {[%clk 0:01:55.2]} 29... Rd4 {[%clk 0:02:15.5]} 30. Qe2 {[%clk
0:01:39.5]} 30... f6 {[%clk 0:02:09.5]} 31. c3 {[%clk 0:01:36.9]} 31... Rf4
{[%clk 0:02:09.9]} 32. Qe3 {[%clk 0:01:30.2]} 32... Qc8 {[%clk 0:02:05.5]} 33.
Rd5 {[%clk 0:01:27.4]} 33... Qc6 {[%clk 0:02:06.1]} 34. Red1 {[%clk 0:01:25.5]}
34... c4 {[%clk 0:02:04.5]} 35. Qxa7 {[%clk 0:01:21.9]} 35... Rxf3 {[%clk
0:02:03]} 36. Rd7 {[%clk 0:01:20.7]} 36... Qe4+ {[%clk 0:02:00.9]} 37. Ka1
{[%clk 0:01:21.4]} 37... Qxg4 {[%clk 0:02:02.4]} 38. a4 {[%clk 0:01:03.2]} 38...
Rh3 {[%clk 0:01:54.5]} 39. Rg1 {[%clk 0:00:48.3]} 39... Rg3 {[%clk 0:01:55.1]}
40. Rgd1 {[%clk 0:00:49.5]} 40... Qxh5 {[%clk 0:01:49.4]} 41. a5 {[%clk
0:00:45.9]} 41... Kh7 {[%clk 0:01:48.5]} 42. a6 {[%clk 0:00:46.4]} 42... e4
{[%clk 0:01:45.1]} 43. Qc7 {[%clk 0:00:42]} 43... Rg5 {[%clk 0:01:43.1]} 44.
R1d5 {[%clk 0:00:38.9]} 44... e3 {[%clk 0:01:28.4]} 45. Rd1 {[%clk 0:00:16.8]}
45... e2 {[%clk 0:01:25.6]} 46. Re1 {[%clk 0:00:16.5]} 46... Ra5+ {[%clk
0:01:25.9]} 47. Kb1 {[%clk 0:00:17.7]} 47... Qf5+ {[%clk 0:01:25.2]} 48. Kc1
{[%clk 0:00:19.1]} 48... Ra1+ {[%clk 0:01:26.3]} 49. Kd2 {[%clk 0:00:20.3]}
49... Qg5+ {[%clk 0:01:12]} 50. Kc2 {[%clk 0:00:17.7]} 50... Qg6+ {[%clk
0:01:11.3]} 51. Kd2 {[%clk 0:00:17.2]} 51... Rd1+ {[%clk 0:01:09.1]} 52. Rxd1
{[%clk 0:00:12.9]} 52... exd1=Q+ {[%clk 0:01:09.2]} 53. Kxd1 {[%clk 0:00:14.8]}
53... Qb1+ {[%clk 0:01:09.7]} 54. Kd2 {[%clk 0:00:12.8]} 54... Qe1+ {[%clk
0:01:11.2]} 0-1